bitfinex/quotes_SOLUSD_20251128
["timestamp","ask_amount","ask_price","bid_price","bid_amount"]
[1764337001050,2.92271854,141.84,141.8,3.63320529]
[1764337001251,2.92271854,141.84,141.83,3.35320529]
[1764337001448,2.92271854,141.84,141.83,12.16315021]
[1764337001753,2.92271854,141.84,141.83,15.86063941]
[1764337002144,2.92271854,141.84,141.83,19.2138447]
[1764337003468,2.92271854,141.84,141.83,19.4938447]
[1764337003844,2.92271854,141.84,141.83,19.2138447]
[1764337004772,3.61271854,141.84,141.83,22.3338447]
[1764337005274,2.92271854,141.84,141.83,22.3338447]
[1764337005666,2.92271854,141.84,141.83,19.2138447]
[1764337005850,3.61271854,141.84,141.83,22.3338447]
[1764337006677,3.61271854,141.84,141.83,18.98063941]
[1764337006968,3.61271854,141.84,141.83,13.52389978]
[1764337007546,2.92271854,141.84,141.83,22.6138447]
[1764337007751,0.69,141.89,141.83,22.6138447]
[1764337007752,0.69,141.89,141.84,9.09426806]
[1764337007965,0.69,141.89,141.88,3.35320529]
[1764337008172,13.27473357,141.93,141.88,6.47320529]
[1764337008359,0.69,141.9,141.89,3.35320529]
[1764337008541,0.69,141.9,141.89,3.12]
[1764337009077,35.22339925,141.96,141.89,3.12]
[1764337009078,0.2,141.99,141.94,1.99999999]
[1764337009366,0.2,141.99,141.98,3.35320529]
[1764337009572,0.2,141.99,141.98,6.47320529]
[1764337010264,0.2,141.99,141.98,15.28315021]
[1764337010566,0.2,141.99,141.98,20.77673896]
[1764337010947,0.2,141.99,141.98,27.81998448]
[1764337011356,0.2,141.99,141.98,36.66677852]
[1764337011758,0.2,141.99,141.98,27.81998448]
[1764337012053,0.2,141.99,141.98,18.97319044]
[1764337012256,0.2,141.99,141.98,27.81998448]
[1764337012660,0.89,141.99,141.98,11.96679404]
[1764337012848,0.89,141.99,141.96,7.0438349]
[1764337013044,0.2,141.99,141.97,7.04357253]
[1764337013264,0.2,141.99,141.98,8.84679404]
[1764337013576,0.89,141.99,141.97,7.04357253]
[1764337013777,0.89,141.99,141.98,8.84679404]
[1764337014072,0.2,141.99,141.98,8.84679404]
[1764337014276,0.2,141.99,141.98,20.77673896]
[1764337014775,171.57918887,142.08,141.99,8.80994492]
[1764337015090,0.69,142.05,142.01,7.04175762]
[1764337015277,0.69,142.09,142.01,24.64615167]
[1764337015464,0.69,142.08,142.02,8.80994492]
[1764337016578,0.69,142.08,142.07,8.84679404]
[1764337017277,0.69,142.08,142.03,24.64153447]
[1764337017585,7.72843368,142.08,142.05,8.84679404]
[1764337017889,0.69,142.07,142.01,7.04166854]
[1764337018060,0.69,142.07,142.06,8.84679404]
[1764337018876,0.69,142.07,142.05,8.84679404]
[1764337019076,0.69,142.07,142.03,7.04071549]
[1764337019280,0.69,142.07,142.06,8.84679404]
[1764337020561,3.81,142.07,142.03,7.04073658]
[1764337020765,10.84922507,142.07,142.03,7.04068657]
[1764337020957,0.69,142.06,142.05,8.84679404]
[1764337021158,7.72967814,142.06,142.01,7.04175762]
[1764337021377,7.72967814,142.06,142.03,8.84679404]
[1764337021678,0.69,142.05,142.03,8.84679404]
[1764337021871,9.53679404,142.05,141.98,17.60694178]
[1764337022176,0.69,142.05,142.02,8.84679404]
[1764337022400,8.84679404,142.03,141.95,17.61070947]
[1764337022579,11.96679404,142.02,141.95,24.65544353]
[1764337022782,17.69358808,142.02,141.95,7.04473406]
[1764337022984,15.89049584,141.98,141.94,8.84679404]
[1764337023478,0.69,141.97,141.94,8.84679404]
[1764337023682,3.12,141.96,141.94,8.84679404]
[1764337023984,3.12,141.96,141.89,17.61879286]
[1764337024154,0.69,141.95,141.89,17.61879286]
[1764337024357,9.53679404,141.95,141.91,8.84679404]
[1764337024560,8.84679404,141.94,141.9,8.84679404]
[1764337024757,0.69,141.94,141.9,8.84679404]
[1764337024990,0.69,141.93,141.9,8.84679404]
[1764337025163,7.73617738,141.93,141.88,7.04820975]
[1764337025363,7.73617738,141.93,141.9,8.84679404]
[1764337025582,7.73617738,141.93,141.88,7.04820975]
[1764337025583,0.69,141.92,141.91,8.84679404]
[1764337025753,0.69,141.92,141.88,7.04820975]
[1764337025957,3.12,141.91,141.88,7.04820975]
[1764337026154,3.12,141.91,141.86,17.6221811]
[1764337026387,0.69,141.9,141.86,17.6221811]
[1764337026563,0.69,141.9,141.89,8.84679404]
[1764337026764,0.69,141.9,141.86,17.6221811]
[1764337027162,0.69,141.9,141.89,15.89450705]
[1764337027354,0.69,141.9,141.89,7.04771301]
[1764337027587,0.69,141.9,141.89,15.89450705]
[1764337027891,3.81,141.9,141.89,15.89450705]
[1764337028260,3.81,141.9,141.89,8.84679404]
[1764337028489,3.81,141.9,141.88,8.84679404]
[1764337028665,0.69,141.89,141.88,8.84679404]
[1764337028862,3.81,141.89,141.88,8.84679404]
[1764337030061,3.81,141.89,141.84,24.67569091]
[1764337030260,3.81,141.89,141.87,8.84679404]
[1764337030261,0.69,141.88,141.87,8.84679404]
[1764337030660,3.12,141.88,141.85,8.80994492]
[1764337031076,3.82,141.88,141.87,5.72817731]
[1764337031574,3.12,141.88,141.87,5.72817731]
[1764337031754,3.12,141.88,141.87,12.77688387]
[1764337031954,0.7,141.88,141.87,12.77688387]
[1764337032190,3.82,141.88,141.87,12.77688387]
[1764337032392,0.7,141.88,141.87,12.77688387]
[1764337032704,3.82,141.88,141.86,5.72817731]
[1764337033091,0.7,141.87,141.85,5.72817731]
[1764337033692,0.7,141.87,141.84,5.72817731]
[1764337034062,0.7,141.87,141.79,8.80994492]
[1764337034063,7.74879489,141.87,141.79,8.80994492]
[1764337034268,5.72817731,141.84,141.8,5.72817731]
[1764337034570,5.72817731,141.84,141.78,0.1]
[1764337034571,3.12,141.83,141.81,5.72817731]
[1764337034968,0.7,141.82,141.78,0.1]
[1764337035171,0.7,141.82,141.79,5.72817731]
[1764337035488,3.12,141.81,141.79,5.72817731]
[1764337035872,0.7,141.8,141.78,7.15312349]
[1764337036071,0.7,141.8,141.79,5.72817731]
[1764337036268,0.7,141.82,141.79,5.72817731]
[1764337036473,0.7,141.86,141.81,5.72817731]
[1764337036684,3.82,141.85,141.82,5.72817731]
[1764337036889,3.82,141.85,141.81,5.72817731]
[1764337037097,0.7,141.84,141.81,5.72817731]
[1764337037416,0.7,141.84,141.8,5.72817731]
[1764337037769,3.12,141.83,141.81,12.77983002]
[1764337037967,3.12,141.83,141.81,7.05165271]
[1764337038171,0.7,141.82,141.81,7.05165271]
[1764337039075,5.72817731,141.85,141.81,7.05165271]
[1764337039276,3.82,141.84,141.8,12.78027488]
[1764337039489,3.82,141.84,141.8,5.72817731]
[1764337039701,0.7,141.83,141.79,12.78068056]
[1764337039877,0.7,141.83,141.8,5.72817731]
[1764337040478,0.7,141.83,141.78,0.1]
[1764337040479,13.47903241,141.83,141.78,7.15304151]
[1764337040679,5.72817731,141.82,141.78,7.15304151]
[1764337040887,5.72817731,141.82,141.78,12.88121882]
[1764337040888,0.72,141.82,141.78,12.88121882]
[1764337041089,0.72,141.81,141.79,5.72817731]
[1764337041279,3.12,141.8,141.79,5.72817731]
[1764337041480,3.12,141.8,141.78,12.88121882]
[1764337041682,3.84,141.8,141.78,12.88121882]
[1764337041985,3.84,141.8,141.78,7.15304151]
[1764337042186,3.84,141.8,141.78,12.88121882]
[1764337042677,0.72,141.98,141.97,1.99999998]
[1764337042991,2.86,142.03,142.0,1.99999998]
[1764337043196,2.86,142.02,142.0,1.99999998]
[1764337043393,0.72,142.07,142.01,5.72817731]
[1764337043598,3.14,142.06,142.03,5.72817731]
[1764337043805,3.14,142.06,142.0,1.99999998]
[1764337043979,7.75977472,142.05,142.02,5.72817731]
[1764337044175,7.75977472,142.05,141.99,1.99999998]
[1764337044377,1.00432314,142.04,141.99,5.72817731]
[1764337044594,1.00432314,142.04,142.0,5.72817731]
[1764337044796,0.72,142.03,142.0,5.72817731]
[1764337044978,3.14,142.02,142.0,5.72817731]
[1764337045182,3.14,142.02,142.01,5.72817731]
[1764337045703,3.86,142.02,142.01,5.72817731]
[1764337046680,0.72,142.02,142.01,5.72817731]
[1764337046899,3.86,142.02,142.01,7.72817729]
[1764337047096,3.86,142.02,142.01,5.72817731]
[1764337047405,3.86,142.02,142.01,7.72817729]
[1764337048283,3.86,142.02,142.01,1.99999998]
[1764337048882,3.86,142.02,142.0,1.99999998]
[1764337049087,0.72,142.01,142.0,1.99999998]
[1764337049400,0.72,142.01,141.99,5.72817731]
[1764337049592,0.72,142.01,142.0,1.99999998]
[1764337049797,0.72,142.01,141.99,5.72817731]
[1764337049993,0.72,142.01,141.98,9.04289522]
[1764337050301,0.72,142.01,141.98,14.77107253]
[1764337050502,0.72,142.01,141.98,7.72817729]
[1764337050725,3.14,142.0,141.98,7.72817729]
[1764337050902,3.14,142.0,141.99,1.99999998]
[1764337051276,3.14,142.0,141.98,14.77139668]
[1764337051482,3.14,142.0,141.99,1.99999998]
[1764337052202,3.86,142.0,141.99,1.99999998]
[1764337052429,3.86,142.0,141.97,1.99999998]
[1764337052578,6.44817731,141.99,141.96,1.99999998]
[1764337052777,6.44817731,141.99,141.95,1.99999998]
[1764337053004,0.72,141.98,141.95,1.99999998]
[1764337053182,0.72,141.98,141.95,9.04472891]
[1764337053384,0.72,141.98,141.96,1.99999998]
[1764337053788,0.72,141.98,141.97,1.99999998]
[1764337053979,3.86,141.98,141.97,1.99999998]
[1764337054184,3.86,141.98,141.97,7.72817729]
[1764337054608,0.72,141.98,141.97,1.99999998]
[1764337054809,3.86,141.98,141.97,1.99999998]
[1764337055190,0.72,141.98,141.97,1.99999998]
[1764337055588,3.86,141.98,141.97,1.99999998]
[1764337056190,0.72,141.98,141.96,1.99999998]
[1764337056395,3.86,141.97,141.96,1.99999998]
[1764337056603,3.86,141.97,141.95,1.99999998]
[1764337056911,0.72,141.96,141.95,1.99999998]
[1764337057615,3.86,141.96,141.95,1.99999998]
[1764337057993,3.86,141.96,141.92,1.99999998]
[1764337058189,0.72,141.95,141.92,1.99999998]
[1764337058493,0.72,141.95,141.94,1.99999998]
[1764337058709,0.72,141.95,141.91,1.99999998]
[1764337058907,6.44817731,141.95,141.92,1.99999998]
[1764337059214,12.77414198,141.93,141.9,1.99999998]
[1764337059407,8.86817731,141.92,141.88,9.04808846]
[1764337059604,9.58817731,141.92,141.9,1.99999998]
[1764337059817,0.72,141.91,141.9,1.99999998]
[1764337060600,3.86,141.91,141.9,1.99999998]
[1764337060796,0.72,141.91,141.9,1.99999998]
[1764337061111,7.70575729,141.93,141.91,1.99999998]
[1764337061316,0.66,141.92,141.91,1.99999998]
[1764337061617,3.8,141.92,141.91,1.99999998]
[1764337061820,0.66,141.92,141.91,1.99999998]
[1764337062027,3.8,141.92,141.91,1.99999998]
[1764337063620,0.66,141.92,141.91,1.99999998]
[1764337063830,3.8,141.92,141.91,1.99999998]
[1764337064125,9.52817731,141.92,141.9,1.99999998]
[1764337064315,6.38817731,141.91,141.89,9.04726017]
[1764337064494,0.66,141.91,141.89,9.04726017]
[1764337064696,0.66,141.9,141.88,1.99999998]
[1764337065523,3.14,141.89,141.88,1.99999998]
[1764337067446,3.8,141.89,141.88,9.04820973]
[1764337068403,3.8,141.89,141.82,8.33119163]
[1764337068404,16.57589032,141.89,141.82,8.33119163]
[1764337068619,5.72817731,141.86,141.83,1.27999998]
[1764337068821,8.86817731,141.85,141.82,7.05119165]
[1764337069131,5.72817731,141.83,141.81,1.27999998]
[1764337069312,5.72817731,141.83,141.8,1.27999998]
[1764337069519,5.72817731,141.83,141.81,1.27999998]
[1764337069833,6.38817731,141.82,141.78,0.1]
[1764337070036,8.86817731,141.81,141.79,1.27999998]
[1764337070203,9.52817731,141.81,141.79,1.27999998]
[1764337070408,0.66,141.8,141.79,1.27999998]
[1764337070804,3.14,141.8,141.79,1.27999998]
[1764337071708,3.8,141.8,141.79,1.27999998]
[1764337072630,0.66,141.8,141.79,1.27999998]
[1764337072813,3.8,141.8,141.79,1.27999998]
[1764337073222,3.8,141.8,141.78,1.37999998]
[1764337073434,3.8,141.8,141.79,1.27999998]
[1764337074010,0.66,141.82,141.8,1.27999998]
[1764337074305,3.8,141.81,141.8,1.27999998]
[1764337078312,16.57986618,141.81,141.78,0.1]
[1764337078516,7.71218617,141.8,141.79,1.27999998]
[1764337078940,7.71218617,141.8,141.78,0.1]
[1764337079130,0.66,141.79,141.78,0.1]
[1764337079837,5.72817731,142.11,141.83,18.7613274]
[1764337080032,75.0,142.07,141.97,1.99999999]
[1764337080334,5.72817731,141.98,141.93,1.99999999]
[1764337080508,8.90817731,141.97,141.94,1.99999999]
[1764337080715,3.18,141.96,141.95,1.99999999]
[1764337081127,3.18,141.96,141.94,1.99999999]
[1764337081411,8.80994492,141.99,141.95,7.7281773]
[1764337081613,3.18,141.98,141.95,7.7281773]
[1764337081808,3.18,141.98,141.95,5.72817731]
[1764337082047,0.66,141.97,141.95,7.7281773]
[1764337082536,0.66,141.97,141.96,7.7281773]
[1764337082845,3.84,141.97,141.96,7.7281773]
[1764337083442,3.84,141.97,141.96,1.99999999]
[1764337085436,3.84,141.97,141.95,7.7281773]
[1764337085624,0.66,141.96,141.95,7.7281773]
[1764337086338,3.84,141.96,141.95,7.7281773]
[1764337086530,3.84,141.96,141.95,1.99999999]
[1764337087415,3.84,141.96,141.94,7.7281773]
[1764337087616,0.66,141.95,141.94,7.7281773]
[1764337087816,0.66,141.95,141.94,1.99999999]
[1764337090219,0.66,141.95,141.92,14.77433286]
[1764337090542,0.66,141.95,141.93,1.99999999]
[1764337091441,3.18,141.94,141.93,1.99999999]
[1764337092143,3.88,141.94,141.93,1.99999999]
[1764337093339,3.88,141.94,141.92,1.99999999]
[1764337093540,3.88,141.94,141.93,1.99999999]
[1764337094342,3.88,141.94,141.93,9.04572675]
[1764337094541,0.7,141.97,141.95,1.99999999]
[1764337094838,0.7,141.96,141.95,1.99999999]
[1764337095040,8.85946199,141.98,141.96,1.99999999]
[1764337095242,9.55946199,141.98,141.96,1.99999999]
[1764337095418,0.7,141.97,141.96,1.99999999]
[1764337095618,3.88,141.97,141.96,1.99999999]
[1764337095819,0.7,141.99,141.98,1.99999999]
[1764337096027,3.88,141.99,141.98,1.99999999]
[1764337096344,3.18,141.99,141.98,17.9027075]
[1764337096539,3.18,141.99,141.98,10.85946198]
[1764337097541,3.18,141.99,141.98,1.99999999]
[1764337097743,3.18,141.99,141.98,10.85946198]
[1764337098454,3.88,141.99,141.98,10.85946198]
[1764337098736,3.88,141.99,141.98,1.99999999]
[1764337099039,10.9228386,141.99,141.98,1.99999999]
[1764337099543,10.9228386,141.99,141.97,1.99999999]
[1764337099718,0.7,141.98,141.97,1.99999999]
[1764337101428,7.73207542,142.01,141.99,1.99999999]
[1764337101638,0.69,142.0,141.99,10.85946198]
[1764337101844,3.85,142.0,141.99,10.85946198]
[1764337102736,0.69,142.0,141.99,1.99999999]
[1764337103034,3.85,142.0,141.99,1.99999999]
[1764337108670,3.85,142.0,141.98,1.99999999]
[1764337108850,7.04207542,142.01,141.99,1.99999999]
[1764337109156,3.16,142.0,141.99,1.99999999]
[1764337109352,3.85,142.0,141.99,1.99999999]
[1764337109650,0.69,142.0,141.99,1.99999999]
[1764337109956,3.85,142.0,141.99,1.99999999]
[1764337110147,10.89225352,142.0,141.99,1.99999999]
[1764337110348,7.73225352,142.0,141.99,1.99999999]
[1764337110531,10.89225352,142.0,141.99,1.99999999]
[1764337111536,3.85,142.0,141.99,1.99999999]
[1764337111740,7.73225352,142.0,141.99,1.99999999]
[1764337111936,10.89225352,142.0,141.99,1.99999999]
[1764337112450,10.89225352,142.0,141.98,1.99999999]
[1764337112753,9.54946199,141.99,141.96,1.99999999]
[1764337113069,8.85946199,141.97,141.95,1.99999999]
[1764337113229,3.16,141.96,141.95,1.99999999]
[1764337113434,3.85,141.96,141.95,1.99999999]
[1764337114251,9.54946199,141.96,141.92,1.99999999]
[1764337114458,12.70946199,141.95,141.94,1.99999999]
[1764337114663,19.75425252,141.95,141.94,1.99999999]
[1764337114840,19.75425252,141.95,141.92,1.99999999]
[1764337115040,8.85946199,141.93,141.89,1.99999999]
[1764337115234,0.69,141.94,141.87,1.99999999]
[1764337115235,8.85946199,141.9,141.87,1.99999999]
[1764337115434,3.16,141.92,141.87,1.99999999]
[1764337115435,12.01946199,141.89,141.87,1.99999999]
[1764337115652,12.01946199,141.89,141.88,1.99999999]
[1764337115962,12.70946199,141.89,141.88,1.99999999]
[1764337116255,12.70946199,141.89,141.87,1.99999999]
[1764337116559,8.85946199,141.88,141.87,1.99999999]
[1764337117456,9.54946199,141.88,141.87,1.99999999]
[1764337118035,9.54946199,141.88,141.85,7.04959366]
[1764337118036,0.69,141.91,141.9,1.99999999]
[1764337118339,8.85946199,141.92,141.9,1.99999999]
[1764337118548,3.16,141.91,141.9,1.99999999]
[1764337118749,7.04492278,141.95,141.92,1.99999999]
[1764337118750,16.59438477,141.95,141.92,1.99999999]
[1764337118949,12.01946199,141.94,141.92,1.99999999]
[1764337119143,9.54946199,141.93,141.92,1.99999999]
[1764337119347,9.54946199,141.93,141.88,15.90736685]
[1764337119547,9.54946199,141.92,141.87,15.90796092]
[1764337119745,3.16,141.91,141.87,15.90796092]
[1764337119980,3.85,141.91,141.87,15.90796092]
[1764337120163,3.85,141.91,141.88,8.85946199]
[1764337120845,3.85,141.91,141.88,15.90752696]
[1764337120846,3.16,141.91,141.88,15.90752696]
[1764337121045,7.04635518,141.92,141.89,8.85946199]
[1764337121235,7.71635518,141.92,141.89,8.85946199]
[1764337121439,3.16,141.91,141.88,15.90752696]
[1764337121859,3.68125021,142.02,141.89,12.67471622]
[1764337122059,3.68125021,142.02,142.01,10.85946198]
[1764337122251,7.70853373,142.08,142.06,1.99999999]
[1764337122450,7.70853373,142.08,142.07,1.99999999]
[1764337122764,7.03729767,142.1,142.09,1.99999999]
[1764337123144,0.67,142.1,142.09,1.99999999]
[1764337123368,3.85,142.1,142.09,10.85946198]
[1764337124937,3.85,142.1,142.04,16.308864]
[1764337125142,3.85,142.1,142.05,16.308864]
[1764337125337,3.85,142.1,142.09,5.22204799]
[1764337125671,3.85,142.1,142.09,8.85946199]
[1764337126654,3.85,142.1,142.08,7.03824763]
[1764337126839,3.18,142.1,142.09,8.85946199]
[1764337127043,7.23644131,142.12,142.09,8.85946199]
[1764337127244,3.18,142.11,142.1,8.85946199]
[1764337127476,3.85,142.11,142.1,8.85946199]
[1764337127674,3.85,142.11,142.06,7.03927917]
[1764337127848,0.67,142.1,142.06,7.03927917]
[1764337128163,0.67,142.1,142.09,8.85946199]
[1764337128370,3.85,142.1,142.09,8.85946199]
[1764337128564,0.67,142.1,142.09,8.85946199]
[1764337128744,3.18,142.1,142.09,8.85946199]
[1764337129266,3.85,142.1,142.09,8.85946199]
[1764337130272,0.67,142.1,142.09,8.85946199]
[1764337130452,3.85,142.1,142.09,8.85946199]
[1764337131463,3.85,142.1,142.05,16.308864]
[1764337131667,0.67,142.09,142.07,8.85946199]
[1764337132049,3.18,142.1,142.08,8.85946199]
[1764337132248,3.85,142.1,142.09,8.85946199]
[1764337132471,0.67,142.1,142.09,8.85946199]
[1764337132770,3.85,142.1,142.09,8.85946199]
[1764337133466,0.2,142.12,142.09,8.85946199]
[1764337133669,3.18,142.1,142.06,24.63676982]
[1764337134181,3.85,142.1,142.06,24.63676982]
[1764337136352,3.18,142.1,142.09,15.89724529]
[1764337136565,3.18,142.1,142.09,8.85946199]
[1764337137077,3.85,142.1,142.09,8.85946199]
[1764337137449,3.85,142.1,142.06,7.03927917]
[1764337137645,3.18,142.1,142.05,16.308864]
[1764337137853,0.67,142.09,142.07,8.85946199]
[1764337138076,3.18,142.08,142.07,8.85946199]
[1764337138551,3.85,142.08,142.07,8.85946199]
[1764337138750,3.85,142.08,142.06,8.85946199]
[1764337138974,0.67,142.07,142.05,8.85946199]
[1764337139154,3.85,142.08,142.05,8.85946199]
[1764337139350,3.85,142.08,142.06,8.85946199]
[1764337139763,0.67,142.07,142.06,8.85946199]
[1764337140855,3.18,142.07,142.06,8.85946199]
[1764337141057,0.67,142.07,142.06,8.85946199]
[1764337141257,3.18,142.07,142.06,8.85946199]
[1764337141454,3.18,142.07,142.03,24.64268111]
[1764337141676,0.28432314,142.05,141.97,7.04374163]
[1764337141868,3.18,142.04,142.01,8.85946199]
[1764337142069,0.67,142.05,141.97,7.04374163]
[1764337142278,0.67,142.08,142.04,8.85946199]
[1764337142502,0.67,142.08,142.07,8.85946199]
[1764337142679,7.70683656,142.11,142.07,8.85946199]
[1764337142981,0.67,142.11,142.1,8.85946199]
[1764337143281,3.85,142.11,142.1,8.85946199]
[1764337143854,3.85,142.11,142.09,8.85946199]
[1764337144057,0.67,142.1,142.09,8.85946199]
[1764337144679,0.67,142.1,142.08,15.89749289]
[1764337145481,0.67,142.1,142.09,8.85946199]
[1764337145875,3.85,142.1,142.09,8.85946199]
[1764337146181,3.85,142.1,142.06,17.59784183]
[1764337146479,3.18,142.1,142.09,8.85946199]
[1764337146682,7.2363679,142.12,142.09,8.85946199]
[1764337146884,3.85,142.11,142.06,17.59784183]
[1764337147055,3.85,142.11,142.09,8.85946199]
[1764337147253,0.67,142.1,142.09,8.85946199]
[1764337147886,0.67,142.1,142.06,17.59784183]
[1764337148185,0.67,142.1,142.09,8.85946199]
[1764337148382,0.67,142.1,142.08,8.85946199]
[1764337148755,0.67,142.1,142.06,17.59784183]
[1764337148958,0.67,142.1,142.08,8.85946199]
[1764337150018,0.67,142.1,142.07,7.03877144]
[1764337150182,7.70744302,142.1,142.08,8.85946199]
[1764337150682,0.67,142.09,142.08,8.85946199]
[1764337151383,0.69,142.11,142.08,8.85946199]
[1764337151570,0.2,142.12,142.09,8.85946199]
[1764337151774,3.16,142.11,142.09,8.85946199]
[1764337151967,3.85,142.11,142.09,8.85946199]
[1764337152286,0.89,142.12,142.1,8.85946199]
[1764337152483,0.89,142.12,142.11,8.85946199]
[1764337152674,3.36,142.12,142.1,8.85946199]
[1764337153183,0.69,142.11,142.1,8.85946199]
[1764337153392,3.85,142.11,142.1,8.85946199]
[1764337154384,0.69,142.11,142.1,8.85946199]
[1764337154572,3.85,142.11,142.1,5.71089572]
[1764337156294,10.88689484,142.11,142.07,7.03865587]
[1764337156473,0.69,142.1,142.07,7.03865587]
[1764337156864,0.69,142.1,142.09,5.71089572]
[1764337157478,0.69,142.1,142.08,5.71089572]
[1764337157791,0.69,142.1,142.04,7.04027034]
[1764337157959,7.03779294,142.09,142.07,5.71089572]
[1764337158376,0.69,142.08,142.04,24.6409462]
[1764337158584,3.16,142.07,142.04,7.04027034]
[1764337158985,7.0370008,142.11,142.04,24.6409462]
[1764337159174,3.85,142.1,142.04,24.6409462]
[1764337159497,3.85,142.1,142.08,2.1327796]
[1764337159659,0.69,142.09,142.08,2.1327796]
[1764337161365,7.72779294,142.09,142.07,2.1327796]
[1764337161885,0.69,142.08,142.06,2.1327796]
[1764337162080,7.72831363,142.08,142.05,2.1327796]
[1764337162467,0.69,142.07,142.05,2.1327796]
[1764337162667,3.16,142.06,142.04,7.03995615]
[1764337162866,3.16,142.06,142.05,2.1327796]
[1764337163063,3.85,142.06,142.05,2.1327796]
[1764337165779,3.85,142.06,142.0,59.85906528]
[1764337165992,3.85,142.06,142.05,2.1327796]
[1764337166770,10.88927917,142.06,142.04,2.1327796]
[1764337167592,10.19927917,142.06,142.04,2.1327796]
[1764337167788,0.69,142.05,142.04,2.1327796]
[1764337168370,10.19927917,142.06,142.04,2.1327796]
[1764337168593,0.69,142.1,142.05,2.1327796]
[1764337168801,3.16,142.09,142.08,2.1327796]
[1764337169174,3.85,142.09,142.08,2.1327796]
[1764337169388,3.85,142.09,142.06,2.1327796]
[1764337169591,0.69,142.08,142.07,2.1327796]
[1764337170184,3.85,142.08,142.07,2.1327796]
[1764337170679,0.69,142.08,142.07,2.1327796]
[1764337170880,3.85,142.08,142.07,2.1327796]
[1764337171074,7.03751852,142.1,142.07,2.1327796]
[1764337171296,0.2,142.12,142.09,4.2655592]
[1764337171476,3.36,142.12,142.11,2.1327796]
[1764337171680,3.36,142.12,142.11,9.16958207]
[1764337172612,3.36,142.12,142.08,7.03798435]
[1764337172613,4.05,142.12,142.08,7.03798435]
[1764337172895,4.05,142.12,142.08,9.17076395]
[1764337173776,2.8227796,142.11,142.06,23.34807395]
[1764337173997,0.69,142.11,142.07,2.1327796]
[1764337174688,0.69,142.11,142.08,2.1327796]
[1764337175000,3.16,142.1,142.08,2.1327796]
[1764337175191,3.16,142.1,142.06,40.94627189]
[1764337175385,3.16,142.1,142.08,2.1327796]
[1764337175590,3.16,142.1,142.09,2.1327796]
[1764337176274,0.2,142.12,142.09,2.1327796]
[1764337176476,3.16,142.1,142.08,2.1327796]
[1764337176880,3.16,142.1,142.07,2.1327796]
[1764337177599,3.16,142.1,142.06,40.94627189]
[1764337177778,3.16,142.09,142.08,9.17086018]
[1764337177973,0.69,142.11,142.08,9.17086018]
[1764337178177,3.16,142.1,142.08,9.17086018]
[1764337178381,1e-08,142.12,142.11,18.30886399]
[1764337178587,2.87734545,142.21,142.16,0.28432314]
[1764337178900,2.87734545,142.21,142.2,2.1327796]
[1764337179084,6.05734545,142.21,142.13,5.17999999]
[1764337179408,6.05734545,142.21,142.19,2.1327796]
[1764337180598,2.87734545,142.21,142.2,5.70157769]
[1764337180779,6.05734545,142.21,142.2,5.70157769]
[1764337180980,2.87734545,142.21,142.2,5.70157769]
[1764337181789,2.87734545,142.21,142.2,23.3412128]
[1764337181984,2.87734545,142.21,142.2,29.04279049]
[1764337182187,0.7,142.25,142.2,76.08382883]
[1764337182387,3.16,142.24,142.21,5.70157769]
[1764337182595,3.16,142.24,142.22,5.70157769]
[1764337182785,3.16,142.23,142.2,40.92208481]
[1764337182995,0.7,142.24,142.22,5.70157769]
[1764337183503,3.16,142.23,142.22,7.03095932]
[1764337184008,3.86,142.23,142.22,7.03095932]
[1764337184685,3.86,142.23,142.19,5.70157769]
[1764337184882,0.7,142.22,142.18,17.58311458]
[1764337185099,0.7,142.22,142.19,5.70157769]
[1764337185482,0.7,142.22,142.2,7.0323488]
[1764337185682,3.16,142.21,142.2,7.0323488]
[1764337185899,3.16,142.21,142.2,12.73392649]
[1764337186491,3.16,142.21,142.2,7.0323488]
[1764337186690,3.16,142.21,142.2,12.73392649]